{"text_format":"1","workbook":"xlsx","n_sheets":3,"sheets":["Foglio1","Foglio2","Foglio3"],"not_rendered":{"charts":0,"images":0,"macros":0,"external_links":0,"defined_names":0,"comments":0,"pivot_tables":0},"unopened":[],"bounds":{"document_bytes":16777216,"sheet_cells":100000,"rows_first":2000,"rows_last":500,"rows_between":2000,"halvings":0,"cell_chars":16384,"cell_head_chars":4096},"cells_cut":0,"cells_raw":0,"read":"whole","date_system":"1900"}

{"sheet":"Foglio1","index":0,"n_rows":36,"n_cols":15,"rows_kept":36,"cut":false,"hidden":false,"merged":[[0,0,0,14],[1,0,2,1],[1,2,1,7],[1,8,2,8],[1,9,1,12],[1,13,2,13],[18,0,21,0],[22,0,25,0],[26,0,29,0],[30,0,33,0],[1,14,2,14],[4,0,6,0],[7,0,10,0],[11,0,13,0],[14,0,17,0]]}
["RIEPILOGO LIVELLO DI RISCHIO"]
[null,null,"INDICI DI VALUTAZIONE DELLA PROBABILITA'",null,null,null,null,null,"VALORI \nPROBABILITA'","INDICI VALUTAZIONE DELL'IMPATTO",null,null,null,"VALORI IMPATTO ","VALUTAZIONE COMPLESSIVA DEL RISCHIO "]
[null,null,"DISCREZIONALITA'","RILEVANZA ESTERNA","COMPLESSITA' DEL PROCESSO","VALORE ECONOMICO","FRAZIONABILITA' DEL PROCESSO","CONTROLLI",null,"IMPATTO ORGANIZZATIVO","IMPATTO ECONOMICO","IMPATTO REPUTAZIONALE","IMP. ORGANIZZATIVO, ECONOMICO IMMAGINE"]
["AREA DI RISCHIO","PROCESSO","A1","A2","A3","A4","A5","A6","A","B1","B2","B3","B4","B","A x B"]
["ACQUISIZIONI E PROGRESSIONI DI PERSONALE","CONFERIMENTO DI INCARICHI DI COLLABORAZIONE",2,5,1,4,1,2,{"$f":"(C5+D5+E5+F5+G5+H5)/6","v":2.5},1,1,1,4,{"$f":"(J5+K5+L5+M5)/4","v":1.75},{"$f":"I5*N5","v":4.375}]
[null,"PROGRESSIONI DI CARRIERA",2,2,1,1,1,1,{"$f":"(C6+D6+E6+F6+G6+H6)/6","v":1.3333333333333333},1,1,1,5,{"$f":"(J6+K6+L6+M6)/4","v":2},{"$f":"I6*N6","v":2.6666666666666665}]
[null,"RECLUTAMENTO DEL PERSONALE",2,5,1,1,1,2,2,1,1,1,5,2,{"$f":"I7*N7","v":4}]
["AFFIDAMENTO LAVORI, SERVIZI E FORNITURE","PREDISPOSIZIONE BANDO",2,5,1,5,1,2,2.6666666666666665,2,1,1,4,2,5.333333333333333]
[null,"ESPLETAMENTO GARA D'APPALTO",2,5,1,5,1,2,2.6666666666666665,2,1,1,4,2,5.333333333333333]
[null,"ALTRE PROCEDURE DI AFFIDAMENTO ",3,5,1,5,1,3,3,2,1,1,4,2,6]
[null,"ESECUZIONE DEL CONTRATTO",2,5,1,5,1,2,2.6666666666666665,1,1,1,3,1.5,4]
["PROVVEDIMENTI AMPLIATIVI DELLA SFERA GIURIDICA DEI DESTINATARI PRIVI DI EFFETTO ECONOMICO DIRETTO ED IMMEDIATO PER IL DESTINATARIOPROVVEDIMENTI ","ATTIVITA' DI CONTROLLO ",2,5,1,1,1,2,2,3,1,1,4,2.25,4.5]
[null,"PROVVEDIMENTI DI TIPO AUTORIZZATIVO/DICHIARATIVO ",2,5,1,1,1,2,2,2,1,1,4,2,4]
[null,"PROVVEDIMENTI DI TIPO CONCESSORIO",2,5,1,1,1,2,2,2,1,1,4,2,4]
["PROVVEDIMENTI AMPLIATIVI DELLA SFERA GIURIDICA DEI DESTINATARI CON  EFFETTO ECONOMICO DIRETTO ED IMMEDIATO PER IL DESTINATARIO","ATTRIBUZIONE DI VANTAGGI ECONOMICI DI QUALUNQUE GENERE A PERSONE E ENTI PUBBLICI O PRIVATI",2,5,1,3,1,2,2.3333333333333335,2,1,1,4,2,4.666666666666667]
[null,"CONCESSIONI ED EROGAZIONE DI SOVVENZIONI, CONTRIBUTI, SUSSIDI, AUSILI FINANZIARI",2,5,1,3,1,2,{"$f":"(C16+D16+E16+F16+G16+H16)/6","v":2.3333333333333335},2,1,1,4,{"$f":"(J16+K16+L16+M16)/4","v":2},4.666666666666667]
[null,"GESTIONE ECONOMICA  DEL PERSONALE",1,2,1,1,1,1,1.1666666666666667,2,1,1,5,2.25,2.625]
[null,"GESTIONE GIURIDICA DEL PERSONALE",1,2,1,1,1,2,1.3333333333333333,2,1,1,5,2.25,3]
["GESTIONE DELLE ENTRATE, DELLE SPESE, DEL PATRIMONIO","PAGAMENTO DA PARTE TERZI",3,2,1,1,1,2,1.6666666666666667,4,1,1,4,2.5,4.166666666666667]
[null,"PAGAMENTI A TERZI",2,5,1,5,1,2,2.6666666666666665,3,1,1,4,2.25,6]
[null,"GESTIONE PATRIMONIO IMMOBILIARE",2,5,1,5,1,2,2.6666666666666665,3,1,1,4,2.25,6]
[null,null,null,null,null,null,null,null,null,null,null,null,null,null,0]
["CONTROLLI, VERIFICHE, ISPEZIONI, SANZIONI","PROGRAMMAZIONE, VERIFICHE SU SERVIZI E FORNITURE",2,5,1,5,1,2,2.6666666666666665,3,1,1,4,2.25,6]
[null,null,null,null,null,null,null,null,null,null,null,null,null,null,0]
[null,null,null,null,null,null,null,null,null,null,null,null,null,null,0]
[null,null,null,null,null,null,null,null,null,null,null,null,null,null,0]
["INCARICHI E NOMINE","NOMINE PRESSO ALTRI ENTI O SOGGETTI",2,5,1,5,1,2,2.6666666666666665,1,1,1,4,1.75,4.6666666666666661]
[null,"INCARICHI CONSULENZA, COLLABORAZIONE",2,5,1,5,1,2,2.6666666666666665,1,1,1,4,1.75,4.6666666666666661]
[null,null,null,null,null,null,null,null,null,null,null,null,null,null,0]
[null,null,null,null,null,null,null,null,null,null,null,null,null,null,0]
["AFFARI LEGALI E CONTENZIOSO","RECUPERO DI SOMME, CREDITI",2,5,1,5,1,2,2.6666666666666665,2,1,1,4,2,5.333333333333333]
[]
[]
[]
[]
["NOTA su IMPATTO ORGANIZZATIVO: ente con personale adibito per lo più a funzioni plurime anche trasversali"]

{"sheet":"Foglio2","index":1,"n_rows":0,"n_cols":0,"rows_kept":0,"cut":false,"hidden":false,"merged":[]}

{"sheet":"Foglio3","index":2,"n_rows":0,"n_cols":0,"rows_kept":0,"cut":false,"hidden":false,"merged":[]}